[Event "Gibraltar Amateurs A 2020"]
[Site "Caleta"]
[Date "2020.01.21"]
[Round "2.9"]
[White "Camara Bordon, Luis Marcos"]
[Black "Dragic, Dragan"]
[Result "0-1"]
[ECO "C54"]
[WhiteElo "1349"]
[BlackElo "1781"]
[Annotator "NA"]
[PlyCount "58"]
[EventDate "2020.01.20"]
[EventType "swiss"]
[EventCountry "GGB"]
[SourceTitle "playchess.com"]
[Source "ChessBase"]
[SourceQuality "1"]
[TimeControl "6600+10"]

1. e4 {[%emt 0:00:00]} e5 {[%emt 0:00:56]} 2. Nf3 {[%emt 0:00:05]} Nc6 {[%emt 0:00:31]} 3. Bc4 {[%emt 0:00:42]} Bc5 {[%emt 0:00:14]} 4. c3 {[%emt 0:00:25]} Nf6 {[%emt 0:00:18]} 5. d3 {[%emt 0:01:24]} a6 {[%emt 0:00:53]} 6. Nbd2 {[%emt 0:02:23]} d6 {[%emt 0:05:48]} 7. Bb3 {[%emt 0:00:54]} Ba7 {[%emt 0:00:34]} 8. Nf1 {[%emt 0:03:36]} Ng4 {[%emt 0:07:56]} 9. Ne3 {[%emt 0:03:28]} O-O {[%emt 0:00:37]} 10. h3 {[%emt 0:01:15]} Nxe3 {[%emt 0:02:27]} 11. Bxe3 {[%emt 0:00:10]} Bxe3 {[%emt 0:02:10]} 12. fxe3 {[%emt 0:00:11]} Qf6 {[%emt 0:12:09]} 13. O-O {[%emt 0:15:03]} Bd7 {[%emt 0:04:54]} 14. Qe1 {[%emt 0:07:15]} Qh6 {[%emt 0:04:55]} 15. Qf2 {[%emt 0:14:12]} Na5 {[%emt 0:13:35]} 16. Bc2 {[%emt 0:10:45]} f5 {[%emt 0:00:52]} 17. exf5 {[%emt 0:23:33]} Bxf5 {[%emt 0:03:11]} 18. b4 {[%emt 0:07:49]} Nc6 {[%emt 0:05:59]} 19. e4 {[%emt 0:02:23]} Be6 {[%emt 0:01:14]} 20. Rae1 {[%emt 0:05:30]} Bxa2 {[%emt 0:06:32]} 21. Qg3 {[%emt 0:00:48]} Qf4 {[%emt 0:03:06]} 22. Qf2 {[%emt 0:02:18]} Be6 {[%emt 0:01:37]} 23. d4 {[%emt 0:00:33]} Bc4 {[%emt 0:00:47]} 24. d5 {[%emt 0:03:36]} Ne7 {[%emt 0:01:13]} 25. Re2 {[%emt 0:02:48]} Ng6 {[%emt 0:01:44]} 26. Rfe1 {[%emt 0:01:10]} Bxe2 {[%emt 0:01:27]} 27. Qxe2 {[%emt 0:00:11]} Qg3 {[%emt 0:00:25]} 28. Kh1 {[%emt 0:01:12]} Rxf3 {[%emt 0:03:23]} 29. Qxf3 {[%emt 0:00:06]} Qxe1+ {[%emt 0:00:10]} 0-1

[Event "Gibraltar Amateurs A 2020"]
[Site "Caleta"]
[Date "2020.01.21"]
[Round "2.10"]
[White "Anjali R. Sagar"]
[Black "Clare, Steve"]
[Result "1-0"]
[ECO "B90"]
[WhiteElo "1775"]
[BlackElo "1632"]
[Annotator "NA"]
[PlyCount "95"]
[EventDate "2020.01.20"]
[EventType "swiss"]
[EventCountry "GGB"]
[SourceTitle "playchess.com"]
[Source "ChessBase"]
[SourceQuality "1"]
[TimeControl "6600+10"]

1. e4 c5 2. Nf3 d6 3. d4 cxd4 4. Nxd4 Nf6 5. Nc3 a6 6. f3 e5 7. Nb3 Be6 8. Bg5 Be7 9. Qd2 O-O 10. O-O-O Ne8 11. Be3 Nc7 12. g4 b5 13. Kb1 Nd7 14. h4 Qb8 15. Na5 b4 16. Nc6 Qe8 17. Ne2 a5 18. Nxe7+ Qxe7 19. Qxd6 Qxd6 20. Rxd6 a4 21. Nc1 Rfb8 22. Be2 Nb5 23. Bxb5 Rxb5 24. Rhd1 Rb7 25. Nd3 h6 26. Bf2 b3 27. cxb3 a3 28. bxa3 Rxa3 29. Rd2 Rb5 30. Nb2 Nc5 31. Bxc5 Rxc5 32. Na4 Ra5 33. Kb2 R5xa4 34. Rxe6 Rxa2+ 35. Kc3 Rxd2 36. Re8+ Kh7 37. Kxd2 Rd4+ 38. Kc3 f6 39. h5 Rd1 40. b4 Rf1 41. b5 Rxf3+ 42. Kc4 Rf4 43. Kd5 Rxg4 44. b6 Rg1 45. b7 Rb1 46. b8=Q Rxb8 47. Rxb8 g5 48. Rb7+ 1-0

[Event "Gibraltar Amateurs A 2020"]
[Site "Caleta"]
[Date "2020.01.21"]
[Round "2.12"]
[White "Bussmann, John"]
[Black "White, Gary"]
[Result "1/2-1/2"]
[ECO "B03"]
[WhiteElo "1752"]
[BlackElo "1608"]
[Annotator "NA"]
[PlyCount "129"]
[EventDate "2020.01.20"]
[EventType "swiss"]
[EventCountry "GGB"]
[SourceTitle "playchess.com"]
[Source "ChessBase"]
[SourceQuality "1"]
[TimeControl "6600+10"]

1. e4 {[%emt 0:00:00]} Nf6 {[%emt 0:00:15]} 2. e5 {[%emt 0:00:08]} Nd5 {[%emt 0:00:04]} 3. c4 {[%emt 0:00:10]} Nb6 {[%emt 0:00:05]} 4. d4 {[%emt 0:00:07]} d6 {[%emt 0:00:04]} 5. exd6 {[%emt 0:00:10]} exd6 {[%emt 0:00:29]} 6. Bd3 {[%emt 0:04:48]} Nc6 {[%emt 0:03:50]} 7. Nf3 {[%emt 0:04:24]} Bg4 {[%emt 0:00:52]} 8. Be3 {[%emt 0:00:25]} Qf6 {[%emt 0:02:44]} 9. Nbd2 {[%emt 0:02:50]} Be7 {[%emt 0:08:10]} 10. Ne4 {[%emt 0:12:20]} Qg6 {[%emt 0:02:33]} 11. c5 {[%emt 0:04:20]} dxc5 {[%emt 0:01:24]} 12. dxc5 {[%emt 0:00:34]} f5 {[%emt 0:01:46]} 13. Nc3 {[%emt 0:05:02]} Nd7 {[%emt 0:02:48]} 14. Nd5 {[%emt 0:01:58]} O-O {[%emt 0:02:32]} 15. Bc4 {[%emt 0:06:15]} Kh8 {[%emt 0:04:08]} 16. Nxe7 {[%emt 0:00:32]} Nxe7 {[%emt 0:00:06]} 17. Qxd7 {[%emt 0:00:14]} f4 {[%emt 0:01:37]} 18. Ne5 {[%emt 0:01:37]} Bxd7 {[%emt 0:01:26]} 19. Nxg6+ {[%emt 0:00:06]} Nxg6 {[%emt 0:00:22]} 20. Bd4 {[%emt 0:00:21]} Rae8+ {[%emt 0:03:59]} 21. Kd2 {[%emt 0:00:58]} Re4 {[%emt 0:03:07]} 22. Kc3 {[%emt 0:00:19]} Bc6 {[%emt 0:04:33]} 23. f3 {[%emt 0:01:15]} Re7 {[%emt 0:01:24]} 24. Rae1 {[%emt 0:06:50]} Rfe8 {[%emt 0:01:39]} 25. Rxe7 {[%emt 0:00:06]} Rxe7 {[%emt 0:01:00]} 26. Bf2 {[%emt 0:03:29]} a6 {[%emt 0:02:42]} 27. Re1 {[%emt 0:01:38]} Rxe1 {[%emt 0:01:01]} 28. Bxe1 {[%emt 0:00:06]} Ne5 {[%emt 0:02:04]} 29. Be2 {[%emt 0:06:22]} g5 {[%emt 0:02:03]} 30. Bf2 {[%emt 0:00:44]} Kg7 {[%emt 0:00:28]} 31. Bd4 {[%emt 0:02:02]} Kf6 {[%emt 0:00:06]} 32. h3 {[%emt 0:06:11]} Kf5 {[%emt 0:00:46]} 33. Bf2 {[%emt 0:03:49]} h5 {[%emt 0:02:38]} 34. Bd4 {[%emt 0:05:21]} Ke6 {[%emt 0:02:37]} 35. b4 {[%emt 0:01:11]} Kd5 {[%emt 0:03:04]} 36. Bd1 {[%emt 0:01:47]} Ke6 {[%emt 0:05:44]} 37. a4 {[%emt 0:02:51]} Ng6 {[%emt 0:05:32]} 38. Bf2 {[%emt 0:01:53]} Ne7 {[%emt 0:02:24]} 39. Bd4 {[%emt 0:06:56]} Nd5+ {[%emt 0:06:19]} 40. Kc4 {[%emt 0:00:22]} b5+ {[%emt 0:01:52]} 41. cxb6 {[%emt 0:00:31]} cxb6 {[%emt 0:00:15]} 42. Bb3 {[%emt 0:03:39]} Kd6 {[%emt 0:12:55]} 43. Bf2 {[%emt 0:01:32]} b5+ {[%emt 0:01:56]} 44. axb5 {[%emt 0:00:38]} Bxb5+ {[%emt 0:00:26]} 45. Kd4 {[%emt 0:00:11]} Nxb4 {[%emt 0:00:57]} 46. Be1 {[%emt 0:01:41]} Nc6+ {[%emt 0:00:40]} 47. Ke4 {[%emt 0:00:23]} Bf1 {[%emt 0:00:28]} 48. g3 {[%emt 0:00:12]} Bxh3 {[%emt 0:03:00]} 49. gxf4 {[%emt 0:00:10]} gxf4 {[%emt 0:00:18]} 50. Kxf4 {[%emt 0:00:13]} Bg2 {[%emt 0:00:06]} 51. Bf7 {[%emt 0:00:34]} Bxf3 {[%emt 0:00:11]} 52. Bc3 {[%emt 0:03:14]} Be2 {[%emt 0:00:56]} 53. Kg5 {[%emt 0:01:00]} Kc5 {[%emt 0:00:39]} 54. Bxh5 {[%emt 0:01:25]} Bxh5 {[%emt 0:00:02]} 55. Kxh5 {[%emt 0:00:03]} Kc4 {[%emt 0:00:17]} 56. Ba1 {[%emt 0:00:19]} Kb3 {[%emt 0:00:27]} 57. Kg4 {[%emt 0:00:17]} a5 {[%emt 0:00:01]} 58. Kf4 {[%emt 0:00:15]} Nb4 {[%emt 0:00:09]} 59. Ke4 {[%emt 0:00:25]} a4 {[%emt 0:00:05]} 60. Bh8 {[%emt 0:00:30]} a3 {[%emt 0:00:05]} 61. Kd4 {[%emt 0:00:08]} a2 {[%emt 0:00:36]} 62. Ke3 {[%emt 0:00:16]} Nd5+ {[%emt 0:00:22]} 63. Kd3 {[%emt 0:00:15]} Nb6 {[%emt 0:00:27]} 64. Kd2 {[%emt 0:00:43]} Nc4+ {[%emt 0:00:11]} 65. Kc1 {[%emt 0:00:09]} 1/2-1/2

[Event "Gibraltar Amateurs A 2020"]
[Site "Caleta"]
[Date "2020.01.21"]
[Round "2.14"]
[White "Jacob, Sydney J"]
[Black "Reyes, Craig"]
[Result "1-0"]
[ECO "C02"]
[WhiteElo "1816"]
[BlackElo "1240"]
[Annotator "NA"]
[PlyCount "41"]
[EventDate "2020.01.20"]
[EventType "swiss"]
[EventCountry "GGB"]
[SourceTitle "playchess.com"]
[Source "ChessBase"]
[SourceQuality "1"]
[TimeControl "6600+10"]

1. e4 {[%emt 0:00:00]} e6 {[%emt 0:00:03]} 2. d4 {[%emt 0:00:02]} d5 {[%emt 0:00:07]} 3. e5 {[%emt 0:00:14]} c5 {[%emt 0:00:14]} 4. c3 {[%emt 0:00:24]} a6 {[%emt 0:00:32]} 5. a4 {[%emt 0:03:19]} Nc6 {[%emt 0:00:40]} 6. Nf3 $11 {[%emt 0:00:51]} Be7 {[%emt 0:00:45]} 7. Bd3 {[%emt 0:01:56]} cxd4 {[%emt 0:05:34]} 8. cxd4 {[%emt 0:00:23]} Bb4+ {[%emt 0:01:43]} 9. Nbd2 {[%emt 0:02:40]} Nge7 {[%emt 0:00:33]} 10. O-O {[%emt 0:01:49]} O-O {[%emt 0:00:06]} (10... Bd7 $11 {and Black stays safe.}) 11. Bxh7+ {[%emt 0:06:48]} Kh8 {[%emt 0:02:08]} 12. Bd3 {[%emt 0:01:04]} Nf5 {[%emt 0:02:32]} 13. Nb3 {[%emt 0:01:07]} Be7 {[%emt 0:01:03]} 14. Be3 {[%emt 0:06:22]} g6 {[%emt 0:04:41]} 15. Nfd2 {[%emt 0:05:28]} Nxe3 {[%emt 0:03:33]} 16. fxe3 {[%emt 0:00:17]} Kg7 {[%emt 0:00:20]} 17. Qg4 {[%emt 0:02:01]} Bg5 {[%emt 0:02:01]} 18. Rae1 {[%emt 0:02:33]} Qe7 {[%emt 0:03:39]} 19. g3 {[%emt 0:01:02]} Bd7 {[%emt 0:03:16]} 20. h4 {[%emt 0:00:47]} Bh6 {[%emt 0:01:14]} 21. Rf6 {[%emt 0:06:41]} 1-0

[Event "Gibraltar Amateurs A 2020"]
[Site "Caleta"]
[Date "2020.01.21"]
[Round "2.15"]
[White "Bullock, Lee"]
[Black "Oueld El Hachemi, Abdelhaq"]
[Result "0-1"]
[ECO "D02"]
[WhiteElo "1509"]
[BlackElo "1788"]
[Annotator "NA"]
[PlyCount "164"]
[EventDate "2020.01.20"]
[EventType "swiss"]
[EventCountry "GGB"]
[SourceTitle "playchess.com"]
[Source "ChessBase"]
[SourceQuality "1"]
[TimeControl "6600+10"]

1. d4 {[%emt 0:00:05]} d5 {[%emt 0:00:08]} 2. Bf4 {[%emt 0:00:00]} Nf6 {[%emt 0:00:33]} 3. e3 {[%emt 0:00:00]} Nbd7 {[%emt 0:00:29]} 4. Nf3 {[%emt 0:01:02]} e6 {[%emt 0:00:42]} 5. Bd3 {[%emt 0:00:14]} Bd6 {[%emt 0:00:09]} 6. Bg3 {[%emt 0:00:18]} b6 {[%emt 0:00:59]} 7. Nbd2 {[%emt 0:01:34]} Bb7 {[%emt 0:00:08]} 8. c3 {[%emt 0:00:16]} Qe7 {[%emt 0:00:26]} 9. Ne5 {[%emt 0:04:15]} O-O {[%emt 0:01:20]} 10. Qc2 {[%emt 0:01:40]} Rfc8 {[%emt 0:00:34]} 11. Ndf3 {[%emt 0:00:28]} Ne4 {[%emt 0:02:27]} 12. Nxd7 {[%emt 0:05:06]} Qxd7 {[%emt 0:00:15]} 13. Ne5 {[%emt 0:00:26]} Qe7 {[%emt 0:03:11]} 14. f3 {[%emt 0:02:39]} Nxg3 {[%emt 0:00:05]} 15. Bxh7+ {[%emt 0:01:21]} Kf8 {[%emt 0:00:20]} 16. hxg3 {[%emt 0:00:22]} Bxe5 {[%emt 0:00:29]} 17. dxe5 {[%emt 0:00:03]} Qg5 {[%emt 0:00:25]} 18. Kf2 {[%emt 0:06:31]} g6 {[%emt 0:05:48]} 19. f4 {[%emt 0:01:37]} Qf5 {[%emt 0:00:58]} 20. Qxf5 {[%emt 0:10:44]} exf5 {[%emt 0:00:55]} 21. e6 {[%emt 0:01:34]} Re8 {[%emt 0:00:17]} 22. exf7 {[%emt 0:00:50]} Kxf7 {[%emt 0:00:20]} 23. Rh6 {[%emt 0:00:44]} Re6 {[%emt 0:01:06]} 24. Rah1 {[%emt 0:01:32]} Kg7 {[%emt 0:01:15]} 25. Bxg6 {[%emt 0:02:23]} Rxg6 {[%emt 0:07:02]} 26. Rh7+ {[%emt 0:00:02]} Kf6 {[%emt 0:01:24]} 27. Rxc7 {[%emt 0:00:10]} Ba6 {[%emt 0:01:29]} 28. Rhh7 {[%emt 0:00:21]} Bb5 {[%emt 0:04:41]} 29. Rxa7 {[%emt 0:01:45]} Rxa7 {[%emt 0:00:24]} 30. Rxa7 {[%emt 0:00:02]} Rg7 {[%emt 0:00:22]} 31. Ra8 {[%emt 0:02:05]} Rc7 {[%emt 0:01:06]} 32. Rb8 {[%emt 0:03:33]} Rc6 {[%emt 0:00:26]} 33. Rd8 {[%emt 0:03:51]} Ke6 {[%emt 0:00:41]} 34. Kf3 {[%emt 0:00:33]} Bd3 {[%emt 0:00:05]} 35. Re8+ {[%emt 0:01:16]} Kf7 {[%emt 0:00:17]} 36. Ra8 {[%emt 0:06:03]} Rh6 {[%emt 0:00:03]} 37. Ra7+ {[%emt 0:01:20]} Ke8 {[%emt 0:00:32]} 38. g4 {[%emt 0:02:12]} fxg4+ {[%emt 0:00:42]} 39. Kg3 {[%emt 0:03:22]} Kd8 {[%emt 0:01:28]} 40. Rg7 {[%emt 0:01:03]} Bf5 {[%emt 0:02:31]} 41. Rg5 {[%emt 0:03:42]} Rf6 {[%emt 0:00:13]} 42. Kh4 {[%emt 0:01:16]} Ke7 {[%emt 0:00:41]} 43. Kg3 {[%emt 0:01:02]} Ke6 {[%emt 0:01:10]} 44. Kf2 {[%emt 0:00:32]} Rg6 {[%emt 0:01:21]} 45. Rh5 {[%emt 0:02:20]} g3+ {[%emt 0:00:09]} 46. Kf1 {[%emt 0:01:02]} Bd3+ {[%emt 0:01:30]} 47. Ke1 {[%emt 0:00:21]} Kd6 {[%emt 0:01:49]} 48. Rh3 {[%emt 0:06:17]} Kc5 {[%emt 0:00:51]} 49. b3 {[%emt 0:01:58]} b5 {[%emt 0:00:33]} 50. Rh8 {[%emt 0:01:54]} Rg7 {[%emt 0:03:08]} 51. b4+ {[%emt 0:01:33]} Kd6 {[%emt 0:00:42]} 52. Rh6+ {[%emt 0:01:10]} Rg6 {[%emt 0:01:11]} 53. Rh5 {[%emt 0:01:03]} Be4 {[%emt 0:00:44]} 54. Kf1 {[%emt 0:00:19]} Ke6 {[%emt 0:02:02]} 55. Re5+ {[%emt 0:00:33]} Kf6 {[%emt 0:00:48]} 56. Rh5 {[%emt 0:00:09]} Bf5 {[%emt 0:00:32]} 57. Rh8 {[%emt 0:00:29]} Kg7 {[%emt 0:00:21]} 58. Rh5 {[%emt 0:00:18]} Bd3+ {[%emt 0:00:40]} 59. Ke1 {[%emt 0:00:16]} Bc4 {[%emt 0:00:10]} 60. a3 {[%emt 0:00:13]} Kf7 {[%emt 0:01:15]} 61. Rh7+ {[%emt 0:01:14]} Rg7 {[%emt 0:00:52]} 62. Rh5 {[%emt 0:00:26]} Ke8 {[%emt 0:00:10]} 63. Rh8+ {[%emt 0:00:27]} Kd7 {[%emt 0:00:26]} 64. Ra8 {[%emt 0:00:14]} Re7 {[%emt 0:00:29]} 65. Kd2 {[%emt 0:02:16]} Kd6 {[%emt 0:02:25]} 66. Rg8 {[%emt 0:00:55]} Rxe3 {[%emt 0:02:24]} 67. Rg6+ {[%emt 0:02:34]} Re6 {[%emt 0:00:09]} 68. Rxg3 {[%emt 0:00:07]} Bf1 {[%emt 0:01:03]} 69. Re3 {[%emt 0:04:56]} Bxg2 {[%emt 0:01:21]} 70. Rxe6+ {[%emt 0:00:46]} Kxe6 {[%emt 0:00:02]} 71. Ke3 {[%emt 0:00:14]} Bf1 {[%emt 0:01:06]} 72. Kd4 {[%emt 0:00:31]} Bc4 {[%emt 0:00:28]} 73. Ke3 {[%emt 0:00:02]} Kf5 {[%emt 0:00:35]} 74. Kf3 {[%emt 0:00:13]} Bb3 {[%emt 0:01:13]} 75. Ke3 {[%emt 0:00:09]} Kg4 {[%emt 0:00:31]} 76. Kd4 {[%emt 0:00:59]} Kxf4 {[%emt 0:00:22]} 77. Kd3 {[%emt 0:00:02]} Kf3 {[%emt 0:00:59]} 78. Kd2 {[%emt 0:00:15]} Bc4 {[%emt 0:00:42]} 79. Kc2 {[%emt 0:00:50]} Ke3 {[%emt 0:00:15]} 80. Kb2 {[%emt 0:00:11]} Kd2 {[%emt 0:00:15]} 81. a4 {[%emt 0:00:17]} bxa4 {[%emt 0:00:11]} 82. Ka3 {[%emt 0:00:10]} Kxc3 {[%emt 0:00:35]} 0-1

[Event "Gibraltar Amateurs A 2020"]
[Site "Caleta"]
[Date "2020.01.21"]
[Round "2.17"]
[White "Jimenez Urquijo, Juan Manuel"]
[Black "Krause, Marianne"]
[Result "1-0"]
[ECO "A35"]
[WhiteElo "1567"]
[BlackElo "1609"]
[Annotator "NA"]
[PlyCount "126"]
[EventDate "2020.01.20"]
[EventType "swiss"]
[EventCountry "GGB"]
[SourceTitle "playchess.com"]
[Source "ChessBase"]
[SourceQuality "1"]
[TimeControl "6600+10"]

1. Nf3 {[%emt 0:00:08]} c5 {[%emt 0:00:00]} 2. c4 {[%emt 0:00:11]} g6 {[%emt 0:00:00]} 3. d4 {[%emt 0:00:20]} cxd4 {[%emt 0:00:05]} 4. Nxd4 {[%emt 0:01:10]} Bg7 {[%emt 0:00:26]} 5. e3 {[%emt 0:00:55]} Nf6 {[%emt 0:01:46]} 6. Nc3 {[%emt 0:01:54]} Nc6 {[%emt 0:01:04]} 7. Be2 {[%emt 0:02:15]} O-O {[%emt 0:01:34]} 8. a3 {[%emt 0:06:10]} d6 {[%emt 0:04:55]} 9. O-O {[%emt 0:00:46]} a6 {[%emt 0:06:37]} 10. Bf3 {[%emt 0:02:15]} Qc7 {[%emt 0:07:12]} 11. b3 {[%emt 0:07:44]} Rb8 {[%emt 0:05:57]} 12. Bb2 {[%emt 0:02:17]} Re8 {[%emt 0:04:37]} 13. Nd5 {[%emt 0:09:03]} Nxd5 {[%emt 0:01:01]} 14. cxd5 {[%emt 0:00:11]} Nxd4 {[%emt 0:03:43]} 15. Bxd4 {[%emt 0:00:41]} Bxd4 {[%emt 0:02:14]} 16. Qxd4 {[%emt 0:00:08]} Bd7 {[%emt 0:00:37]} 17. Rfc1 {[%emt 0:16:27]} Qd8 {[%emt 0:07:27]} 18. Rc3 {[%emt 0:00:24]} Rc8 {[%emt 0:01:21]} 19. Rac1 {[%emt 0:00:39]} Rxc3 {[%emt 0:00:23]} 20. Rxc3 {[%emt 0:02:23]} Qb8 {[%emt 0:02:43]} 21. Bg4 {[%emt 0:03:50]} f5 {[%emt 0:01:07]} 22. Be2 {[%emt 0:00:06]} Rc8 {[%emt 0:01:19]} 23. h4 {[%emt 0:04:32]} Rxc3 {[%emt 0:02:17]} 24. Qxc3 {[%emt 0:00:09]} Qc8 {[%emt 0:00:29]} 25. Qxc8+ {[%emt 0:02:25]} Bxc8 {[%emt 0:00:07]} 26. Kh2 {[%emt 0:00:29]} Kf7 {[%emt 0:00:15]} 27. Kg3 {[%emt 0:04:10]} Kf6 {[%emt 0:02:04]} 28. f4 {[%emt 0:07:34]} e5 {[%emt 0:04:31]} 29. dxe6 {[%emt 0:03:40]} Bxe6 {[%emt 0:00:20]} 30. Bd1 {[%emt 0:04:33]} Bd5 {[%emt 0:01:14]} 31. Kf2 {[%emt 0:01:30]} Be4 {[%emt 0:04:29]} 32. g3 {[%emt 0:01:01]} a5 {[%emt 0:02:34]} 33. b4 {[%emt 0:02:59]} axb4 {[%emt 0:01:47]} 34. axb4 {[%emt 0:00:05]} h6 {[%emt 0:00:39]} 35. Ke2 {[%emt 0:00:11]} Ke7 {[%emt 0:03:06]} 36. Kd2 {[%emt 0:00:29]} Kd8 {[%emt 0:05:38]} 37. Ba4 {[%emt 0:01:20]} Ke7 {[%emt 0:01:42]} 38. Kc3 {[%emt 0:00:04]} Kd8 {[%emt 0:02:06]} 39. Kd4 {[%emt 0:00:25]} Ke7 {[%emt 0:00:34]} 40. Bb3 {[%emt 0:00:21]} Bc6 {[%emt 0:04:47]} 41. Bc4 {[%emt 0:00:52]} Be4 {[%emt 0:03:37]} 42. Bd5 {[%emt 0:05:08]} Bxd5 {[%emt 0:00:54]} 43. Kxd5 {[%emt 0:00:04]} Kd7 {[%emt 0:00:31]} 44. h5 {[%emt 0:02:07]} gxh5 {[%emt 0:00:45]} 45. b5 {[%emt 0:00:31]} Ke7 {[%emt 0:01:26]} 46. b6 {[%emt 0:01:04]} Kd7 {[%emt 0:00:25]} 47. e4 {[%emt 0:00:36]} fxe4 {[%emt 0:00:21]} 48. Kxe4 {[%emt 0:00:03]} Ke6 {[%emt 0:05:22]} 49. f5+ {[%emt 0:00:17]} Kf6 {[%emt 0:00:20]} 50. Kd5 {[%emt 0:01:01]} Kxf5 {[%emt 0:00:07]} 51. Kxd6 {[%emt 0:00:12]} Kg4 {[%emt 0:00:01]} 52. Kc7 {[%emt 0:01:08]} Kxg3 {[%emt 0:00:05]} 53. Kxb7 {[%emt 0:00:12]} h4 {[%emt 0:00:03]} 54. Ka7 {[%emt 0:00:25]} h3 {[%emt 0:00:02]} 55. b7 {[%emt 0:00:13]} h2 {[%emt 0:00:09]} 56. b8=Q+ {[%emt 0:00:43]} Kg2 {[%emt 0:00:03]} 57. Qb2+ {[%emt 0:01:55]} Kg1 {[%emt 0:00:22]} 58. Qc1+ {[%emt 0:00:24]} Kg2 {[%emt 0:00:21]} 59. Qd2+ {[%emt 0:00:06]} Kg1 {[%emt 0:00:21]} 60. Qd1+ {[%emt 0:00:35]} Kg2 {[%emt 0:00:11]} 61. Qg4+ {[%emt 0:00:03]} Kh1 {[%emt 0:01:15]} 62. Qf3+ {[%emt 0:02:13]} Kg1 {[%emt 0:00:10]} 63. Qg3+ {[%emt 0:00:02]} Kh1 {[%emt 0:00:14]} 1-0

[Event "Gibraltar Amateurs A 2020"]
[Site "Caleta"]
[Date "2020.01.21"]
[Round "2.19"]
[White "Sedgwick, David"]
[Black "Dhanwani, Aditya"]
[Result "1-0"]
[ECO "C02"]
[WhiteElo "1894"]
[BlackElo "1565"]
[Annotator "NA"]
[PlyCount "49"]
[EventDate "2020.01.20"]
[EventType "swiss"]
[EventCountry "GGB"]
[SourceTitle "playchess.com"]
[Source "ChessBase"]
[SourceQuality "1"]
[TimeControl "6600+10"]

1. e4 {[%emt 0:33:05]} e6 {[%emt 0:00:12]} 2. d4 {[%emt 0:00:07]} d5 {[%emt 0:00:04]} 3. e5 {[%emt 0:00:12]} c5 {[%emt 0:00:15]} 4. c3 {[%emt 0:00:03]} Qb6 {[%emt 0:00:19]} 5. Nf3 {[%emt 0:00:04]} Nc6 {[%emt 0:00:08]} 6. Bd3 {[%emt 0:00:04]} Bd7 {[%emt 0:00:11]} 7. O-O {[%emt 0:00:27]} cxd4 {[%emt 0:03:10]} 8. cxd4 {[%emt 0:00:06]} Nxd4 {[%emt 0:03:45]} 9. Nxd4 {[%emt 0:00:10]} Qxd4 {[%emt 0:00:09]} 10. Nc3 {[%emt 0:00:05]} a6 {[%emt 0:13:38]} 11. Qe2 {[%emt 0:00:18]} Qa7 {[%emt 0:24:07]} 12. Kh1 {[%emt 0:02:28]} Ne7 {[%emt 0:05:54]} 13. f4 {[%emt 0:00:48]} g6 {[%emt 0:12:37]} 14. Be3 $11 {[%emt 0:03:43]} d4 {[%emt 0:00:48]} 15. Bg1 {[%emt 0:00:21]} Bg7 {[%emt 0:18:32]} 16. Ne4 {[%emt 0:02:13]} Nf5 {[%emt 0:07:19]} 17. Rac1 {[%emt 0:06:12]} O-O {[%emt 0:02:10]} 18. Nf6+ {[%emt 0:05:02]} Bxf6 {[%emt 0:00:33]} 19. exf6 {[%emt 0:00:08]} Rac8 {[%emt 0:00:55]} 20. Qf2 {[%emt 0:02:08]} Ne3 {[%emt 0:01:52]} 21. Qh4 {[%emt 0:04:19]} h5 {[%emt 0:00:29]} 22. Qg5 {[%emt 0:01:34]} Kh7 {[%emt 0:00:33]} 23. Qxh5+ {[%emt 0:01:33]} Kg8 {[%emt 0:00:33]} 24. Qh6 {[%emt 0:00:18]} Nf5 {[%emt 0:00:46]} 25. Bxf5 {[%emt 0:01:20]} 1-0

[Event "Gibraltar Amateurs A 2020"]
[Site "Caleta"]
[Date "2020.01.21"]
[Round "3.1"]
[White "Johansson, Daniel"]
[Black "Ashwani Kumar Grover"]
[Result "0-1"]
[ECO "A13"]
[WhiteElo "1859"]
[BlackElo "1731"]
[Annotator "NA RC"]
[PlyCount "110"]
[EventDate "2020.01.20"]
[EventType "swiss"]
[EventCountry "GGB"]
[SourceTitle "playchess.com"]
[Source "ChessBase"]
[SourceQuality "1"]
[TimeControl "6600+10"]

1. Nf3 {[%emt 0:00:00]} e6 {[%emt 0:05:31]} 2. c4 {[%emt 0:00:47]} d5 {[%emt 0:00:12]} 3. e3 {[%emt 0:00:15]} Nf6 {[%emt 0:01:29]} 4. Be2 {[%emt 0:02:06]} Be7 {[%emt 0:00:32]} 5. O-O {[%emt 0:00:24]} O-O {[%emt 0:00:17]} 6. b3 {[%emt 0:00:56]} b6 {[%emt 0:00:28]} 7. Bb2 {[%emt 0:01:30]} Bb7 {[%emt 0:00:09]} 8. Nc3 {[%emt 0:01:50]} Nbd7 {[%emt 0:01:04]} 9. cxd5 {[%emt 0:01:08] A13: English Opening: 1...e6} (9. Rc1 c5 10. Rc2 Rc8 11. Qa1 Bd6 12. cxd5 exd5 13. d4 a6 14. dxc5 bxc5 15. Rd1 Qe7 16. g3 Rfe8 {0-1 (36) Brunello,S (2556)-Valsecchi,A (2501) Cosenza 2017}) 9... Nxd5 {[%emt 0:03:02]} 10. Nxd5 {[%emt 0:01:31]} Bxd5 {[%emt 0:01:20]} 11. d3 {[%emt 0:02:09]} c5 {[%emt 0:03:28]} 12. Nd2 $146 {[%emt 0:14:34]} ({Predecessor:} 12. Qc2 Rc8 13. Rac1 Bf6 14. Rfd1 Bb7 15. a3 Qe7 16. Qb1 Rfd8 17. Rc2 Bxb2 18. Qxb2 Qf6 19. b4 Qxb2 20. Rxb2 {0-1 (44) Nikolic,B (2236)-Dudukovic,N (2210) Vrnjacka Banja 2009}) 12... Bf6 {[%emt 0:11:44]} 13. Qc2 {[%emt 0:04:35]} Rc8 {[%emt 0:03:53]} 14. Bf3 {[%emt 0:02:36]} Ne5 {[%emt 0:08:00]} 15. Be2 {[%emt 0:13:01]} Nc6 {[%emt 0:06:22]} 16. a3 {[%emt 0:04:11]} Bxb2 {[%emt 0:07:10]} 17. Qxb2 {[%emt 0:00:09]} e5 {[%emt 0:00:20]} 18. Rad1 {[%emt 0:06:48]} f5 {[%emt 0:08:56]} 19. Bf3 {[%emt 0:03:00]} Bf7 {[%emt 0:00:05]} 20. Nc4 {[%emt 0:03:38]} Bd5 {[%emt 0:10:01]} 21. Nxe5 {[%emt 0:13:33]} Nxe5 {[%emt 0:00:55]} 22. Qxe5 {[%emt 0:00:47]} Bxb3 {[%emt 0:00:13]} 23. Rd2 {[%emt 0:01:00]} Kh8 {[%emt 0:06:49]} 24. Rb1 {[%emt 0:04:57]} Bf7 {[%emt 0:05:05]} 25. Rbb2 {[%emt 0:04:59]} Bg8 {[%emt 0:00:43]} 26. g3 {[%emt 0:02:34]} Qf6 {[%emt 0:01:47]} 27. Qxf6 {[%emt 0:07:01]} Rxf6 {[%emt 0:00:13]} 28. Kf1 {[%emt 0:03:02]} Rd8 {[%emt 0:00:47]} 29. Bd1 {[%emt 0:06:02]} Rfd6 {[%emt 0:01:28]} 30. Ke2 {[%emt 0:00:37]} Bd5 {[%emt 0:03:35]} 31. Bb3 {[%emt 0:01:42]} Bc6 {[%emt 0:01:20]} 32. a4 {[%emt 0:00:34]} g5 {[%emt 0:00:12]} 33. Ra2 {[%emt 0:00:58]} g4 {[%emt 0:01:24]} 34. Kd1 $2 {[%emt 0:00:40]} ({White should try} 34. Bc4 $15) 34... Rxd3 {[%emt 0:00:34]} 35. Be6 {[%emt 0:01:14]} Rxd2+ {[%emt 0:01:43]} 36. Rxd2 {[%emt 0:00:03]} Rxd2+ {[%emt 0:00:37]} 37. Kxd2 {[%emt 0:00:02]} Be4 {[%emt 0:00:11]} 38. Kc3 {[%emt 0:00:15]} Kg7 $19 {[%emt 0:00:27]} 39. Kc4 {[%emt 0:00:21]} Kf6 {[%emt 0:00:13]} 40. Bg8 $2 {[%emt 0:00:20]} (40. Bd7) 40... Bb1 {[%emt 0:02:15]} 41. Kb5 {[%emt 0:00:31]} Bd3+ {[%emt 0:00:40]} 42. Kc6 {[%emt 0:00:03]} c4 {[%emt 0:00:12]} 43. Kb7 {[%emt 0:00:16]} c3 {[%emt 0:00:17]} 44. Bb3 {[%emt 0:00:03]} c2 {[%emt 0:00:08]} 45. Bxc2 {[%emt 0:00:01]} Bxc2 {[%emt 0:00:07]} 46. Kxa7 {[%emt 0:00:02]} Bxa4 {[%emt 0:00:22]} 47. Kxb6 {[%emt 0:00:02]} Ke5 {[%emt 0:00:17]} 48. Kc5 {[%emt 0:00:08]} Be8 {[%emt 0:00:22]} 49. Kc4 {[%emt 0:00:33]} Ke4 {[%emt 0:00:10]} 50. Kc5 {[%emt 0:00:06]} Kf3 {[%emt 0:00:14]} 51. Kd6 {[%emt 0:00:06]} Kxf2 {[%emt 0:00:43]} 52. Ke5 {[%emt 0:00:08]} Kxe3 {[%emt 0:00:06]} 53. Kxf5 {[%emt 0:00:04]} h5 {[%emt 0:00:14]} 54. Kg5 {[%emt 0:00:30]} Kf3 {[%emt 0:00:14]} 55. Kh4 {[%emt 0:00:08]} Kg2 {[%emt 0:00:06]} 0-1